bitfinex/quotes_ETHUSD_20250326
["timestamp","ask_amount","ask_price","bid_price","bid_amount"]
[1742999313982,1.89255659,2017.9,2017.3,4.95691]
[1742999314146,0.7804,2017.9,2017.2,9.56170593]
[1742999314346,0.7804,2017.9,2017.4,4.60436593]
[1742999314685,0.7949,2018.3,2017.4,4.95679]
[1742999314847,0.8191,2018.2,2017.3,9.56141593]
[1742999315176,0.8191,2018.0,2017.3,9.56131593]
[1742999315361,0.8191,2018.0,2017.4,5.00620263]
[1742999315558,0.8191,2018.0,2017.4,0.04956263]
[1742999315878,0.8191,2018.0,2017.4,5.00643263]
[1742999316081,0.8191,2018.0,2017.4,0.04956263]
[1742999316449,0.8191,2018.0,2017.6,4.95627]
[1742999316672,0.8191,2018.0,2017.6,5.00578738]
[1742999317077,0.8191,2018.0,2017.6,4.95623]
[1742999317382,0.8191,2018.0,2017.5,4.95662]
[1742999317980,0.8191,2018.0,2017.6,5.00580792]
[1742999318475,0.8191,2018.0,2017.6,9.96203792]
[1742999318670,0.8191,2018.0,2017.6,4.95623]
[1742999318864,0.8191,2018.0,2017.6,5.00575793]
[1742999319065,0.8191,2018.0,2017.7,4.60436593]
[1742999319273,0.7753,2018.3,2017.9,4.95564]
[1742999319880,0.7753,2018.3,2018.1,4.95512]
[1742999320055,0.7753,2018.3,2018.0,4.95535]
[1742999320496,0.7753,2018.3,2018.1,5.0045363]
[1742999320696,0.8027,2018.6,2018.2,4.95471]
[1742999320901,0.8027,2018.6,2018.1,5.61480245]
[1742999320902,0.8027,2018.6,2018.3,9.95855928]
[1742999321074,0.8027,2018.6,2018.3,4.95447]
[1742999321399,0.8027,2018.8,2018.5,4.60436593]
[1742999321575,1e-05,2018.9,2018.7,4.95368]
[1742999321897,1e-05,2018.9,2018.7,9.60757727]
[1742999322094,1e-05,2018.9,2018.8,5.74153]
[1742999322399,1e-05,2018.9,2018.8,6.29153]
[1742999323088,1e-05,2018.9,2018.8,9.29153]
[1742999323394,1e-05,2018.9,2018.8,9.71558848]
[1742999323597,1e-05,2018.9,2018.8,9.66607187]
[1742999323765,1e-05,2018.9,2018.8,4.95343]
[1742999324096,1e-05,2018.9,2018.5,0.7997]
[1742999324398,1e-05,2018.9,2018.1,0.96089022]
[1742999324399,1e-05,2018.9,2018.8,4.95343]
[1742999324786,1e-05,2018.9,2018.6,4.60436593]
[1742999325115,1e-05,2018.9,2018.6,4.95384]
[1742999325294,1e-05,2018.9,2018.7,5.00313096]
[1742999325508,1e-05,2018.9,2018.7,0.04953096]
[1742999325688,1e-05,2018.9,2018.7,5.00318096]
[1742999326009,1e-05,2018.9,2018.8,9.55779593]
[1742999326196,1e-05,2018.9,2018.8,13.10779593]
[1742999327309,1e-05,2018.9,2018.8,4.95343]
[1742999327806,1e-05,2018.9,2018.7,4.95365]
[1742999328012,1e-05,2018.9,2018.7,3.0]
[1742999328208,1e-05,2018.9,2018.4,14.51276593]
[1742999328400,1e-05,2018.9,2018.4,9.55854593]
[1742999328707,1e-05,2018.9,2018.5,4.95406]
[1742999329011,1e-05,2018.9,2018.4,9.55875593]
[1742999329208,1e-05,2018.9,2018.5,0.04953465]
[1742999329408,1e-05,2018.9,2018.5,5.00365465]
[1742999329608,1e-05,2018.9,2018.4,4.95434]
[1742999329791,1e-05,2018.9,2018.1,10.36833593]
[1742999330109,0.7514,2018.8,2018.1,4.95497]
[1742999330406,5.678,2018.7,2018.2,0.04954322]
[1742999330576,0.7514,2018.8,2018.3,4.95449]
[1742999330781,0.7514,2018.8,2018.2,10.52015285]
[1742999331017,0.7514,2018.8,2018.5,4.95395]
[1742999331202,1e-05,2018.9,2018.6,9.60764996]
[1742999331379,1e-05,2018.9,2018.8,9.55779593]
[1742999331681,1e-05,2018.9,2018.8,6.904911]
[1742999331883,1e-05,2018.9,2018.6,4.95391]
[1742999332303,1e-05,2018.9,2018.5,4.95409]
[1742999332492,1e-05,2018.9,2018.5,9.90809]
[1742999333009,1e-05,2018.9,2018.5,4.95405]
[1742999333212,1e-05,2018.9,2018.4,4.95435]
[1742999333985,1e-05,2018.9,2018.5,4.95416]
[1742999334294,1e-05,2018.9,2018.5,5.00353462]
[1742999334495,1e-05,2018.9,2018.5,4.954]
[1742999334802,1e-05,2018.9,2018.6,4.95391]
[1742999335216,1e-05,2018.9,2018.7,4.95357]
[1742999335416,1e-05,2018.9,2018.6,4.95376]
[1742999335731,1e-05,2018.9,2018.8,4.95343]
[1742999336593,1e-05,2018.9,2018.7,4.95345]
[1742999336796,1e-05,2018.9,2018.8,4.95343]
[1742999337238,1e-05,2018.9,2018.6,0.990794]
[1742999337535,0.76051,2018.9,2018.5,4.95397]
[1742999338293,0.76051,2018.9,2018.2,4.95476]
[1742999338531,0.8022,2018.7,2018.0,4.95527]
[1742999338912,4.60436593,2018.7,2017.9,4.95563]
[1742999339217,0.8232,2018.6,2017.9,4.95563]
[1742999339528,0.8232,2018.4,2017.8,4.95587]
[1742999339705,1.47332,2018.4,2017.8,4.95587]
[1742999339886,1.47332,2018.4,2017.8,4.95574]
[1742999340091,0.8159,2018.3,2017.5,4.9565]
[1742999340313,0.8159,2018.3,2017.5,9.91298]
[1742999340555,0.8159,2018.3,2017.6,4.95622]
[1742999340858,0.8159,2018.3,2017.5,9.91306]
[1742999341158,0.8159,2018.3,2017.4,4.95671]
[1742999341320,0.8044,2018.1,2017.4,4.95687]
[1742999341648,0.8044,2018.1,2017.9,4.95561]
[1742999341844,0.8044,2018.1,2017.8,4.95588]
[1742999342013,0.8044,2018.1,2017.8,4.9558]
[1742999342223,0.8044,2018.1,2017.9,4.95561]
[1742999342719,0.8044,2018.1,2017.8,4.95588]
[1742999342920,0.8044,2018.1,2017.8,4.95574]
[1742999343342,0.8044,2018.1,2017.8,9.91151]
[1742999343516,0.8044,2018.1,2017.8,4.95588]
[1742999343719,0.8044,2018.1,2017.7,4.95613]
[1742999344119,1.45264,2018.1,2017.4,4.95686]
[1742999344319,1.45264,2018.1,2017.6,4.95637]
[1742999344545,1.45264,2018.1,2017.6,5.00577774]
[1742999344851,1.45264,2018.1,2017.4,4.95669]
[1742999345144,1.45264,2018.1,2017.5,0.04955956]
[1742999345346,1.45264,2018.1,2017.3,4.95705]
[1742999345667,0.7992,2018.0,2017.3,4.95696]
[1742999345821,0.7992,2018.0,2017.4,5.00624539]
[1742999346020,0.7992,2018.0,2017.0,4.60436593]
[1742999346259,0.7992,2017.8,2017.2,4.95736]
[1742999346427,6.4782,2017.8,2017.2,4.95736]
[1742999346760,6.4782,2017.8,2017.0,4.60436593]
[1742999346761,1.79290181,2017.7,2017.0,4.95783]
[1742999347161,1.79290181,2017.7,2017.1,4.9576]
[1742999347318,1.79290181,2017.7,2017.1,0.77902202]
[1742999347520,1.79290181,2017.7,2017.2,4.95727]
[1742999347763,1.79290181,2017.7,2017.3,4.95695]
[1742999347950,1.79290181,2017.7,2017.3,9.91395]
[1742999348147,0.7992,2017.7,2017.5,4.9564]
[1742999348362,3.7679,2018.4,2017.6,4.95638]
[1742999348537,0.7679,2018.2,2017.6,4.95638]
[1742999349125,0.7679,2018.2,2017.7,4.95591]
[1742999349333,0.7679,2018.2,2018.0,4.9554]
[1742999349334,0.99141698,2018.1,2018.0,4.9554]
[1742999349532,0.7679,2018.2,2017.9,4.9554]
[1742999349734,0.7679,2018.2,2017.5,5.91252659]
[1742999349735,0.7679,2018.2,2017.5,0.95607659]
[1742999349932,0.7679,2018.2,2017.6,5.81220425]
[1742999350227,0.7679,2018.2,2017.7,4.95613]
[1742999350562,0.7679,2018.2,2017.9,4.95558]
[1742999350750,0.7679,2018.2,2018.0,4.95527]
[1742999351556,0.99380115,2018.5,2018.1,5.42166593]
[1742999351775,1e-05,2018.9,2018.4,4.60436593]
[1742999351952,1e-05,2018.9,2018.2,4.60436593]
[1742999352259,1e-05,2018.9,2018.4,4.95439]
[1742999352422,0.8242,2018.8,2018.2,4.9549]
[1742999352623,0.8242,2018.6,2017.7,5.75]
[1742999352835,0.8242,2018.6,2017.9,4.95548]
[1742999353038,0.65032,2018.5,2017.9,4.95548]
[1742999353247,0.8242,2018.4,2017.7,4.95611]
[1742999353455,0.8242,2018.4,2017.7,9.91222]
[1742999353655,0.8242,2018.4,2017.8,4.9558]
[1742999354238,0.8242,2018.4,2017.7,4.9561]
[1742999354432,0.97749661,2018.2,2017.8,4.95583]
[1742999354845,0.97749661,2018.2,2017.7,4.95609]
[1742999355181,0.97749661,2018.2,2017.7,4.95599]
[1742999355334,0.97749661,2018.2,2017.7,4.95597]
[1742999355533,0.97749661,2018.2,2017.8,4.95586]
[1742999355945,0.8242,2018.4,2018.0,4.95533]
[1742999356667,0.98136966,2018.3,2018.0,4.9553]
[1742999357558,0.98136966,2018.3,2018.0,4.6721]
[1742999358268,0.98136966,2018.3,2017.9,4.95562]
[1742999358852,0.98136966,2018.3,2017.8,4.95585]
[1742999359253,0.98136966,2018.3,2017.8,4.95573]
[1742999359969,0.98136966,2018.3,2017.8,9.91146]
[1742999360164,0.98136966,2018.3,2017.8,4.95573]
[1742999360358,0.98136966,2018.3,2017.7,4.95611]
[1742999360560,0.98136966,2018.3,2017.8,4.95572]
[1742999360760,0.98136966,2018.3,2017.7,4.95613]
[1742999360966,0.98136966,2018.3,2017.7,4.95599]
[1742999361144,0.98136966,2018.3,2017.7,4.95597]
[1742999361334,0.98136966,2018.3,2017.4,6.1188281]
[1742999361335,0.8091,2018.2,2017.6,4.95633]
[1742999361731,0.8091,2018.2,2017.6,0.04955793]
[1742999361935,0.8091,2018.2,2017.7,9.56034593]
[1742999362251,0.8091,2018.2,2017.8,4.95576]
[1742999362455,0.8091,2018.2,2017.9,4.95563]
[1742999362661,0.8091,2018.2,2017.7,9.56047593]
[1742999362861,0.8091,2018.2,2018.1,4.95515]
[1742999363239,0.98136966,2018.3,2018.1,4.95515]
[1742999363558,0.8226,2018.4,2018.1,9.91019]
[1742999364063,0.8226,2018.4,2018.3,4.95466]
[1742999364274,28.6,2019.4,2018.3,4.95466]
[1742999364275,0.8226,2018.7,2018.3,9.55890593]
[1742999364453,0.8226,2018.7,2018.5,4.95415]
[1742999364968,0.8226,2018.7,2018.5,4.95402]
[1742999365163,0.8226,2018.7,2018.6,4.95392]
[1742999365371,6.49131,2018.9,2018.6,4.95392]
[1742999365575,0.81331,2018.9,2018.7,4.95357]
[1742999365777,0.81331,2018.9,2018.8,4.95343]
[1742999365942,0.81331,2018.9,2018.7,4.95357]
[1742999366139,0.81331,2018.9,2018.6,4.95389]
[1742999366539,0.81331,2018.9,2018.6,9.90765]
[1742999366744,0.81331,2018.9,2018.6,4.95376]
[1742999367551,0.81331,2018.9,2018.7,4.9535]
[1742999367758,1e-05,2018.9,2018.8,9.60732946]
[1742999368275,1e-05,2018.9,2018.8,9.55779593]
[1742999368473,1e-05,2018.9,2018.8,10.15731716]
[1742999368643,1e-05,2018.9,2018.8,13.10779593]
[1742999368849,1e-05,2018.9,2018.8,9.55779593]
[1742999369154,1e-05,2018.9,2018.8,24.05779593]
[1742999369354,1e-05,2018.9,2018.8,27.53206652]
[1742999370076,1e-05,2018.9,2018.8,13.03206652]
[1742999370796,1e-05,2018.9,2018.8,4.95343]
[1742999371465,1e-05,2018.9,2018.7,4.95358]
[1742999371666,1e-05,2018.9,2018.8,4.95343]
[1742999372790,1e-05,2018.9,2018.7,4.95358]
[1742999372990,0.79201,2018.9,2018.5,4.95403]
[1742999373599,1.438811,2018.9,2018.5,4.95403]
[1742999374085,1.438811,2018.9,2018.5,9.90801]
[1742999374275,1.438811,2018.9,2018.5,4.954]
[1742999374777,1.438811,2018.9,2018.4,4.95431]
[1742999375096,1.438811,2018.9,2018.4,4.95427]
[1742999375307,1.438811,2018.9,2018.5,4.95416]
[1742999376000,1.438811,2018.9,2018.5,4.95401]
[1742999376197,1.438811,2018.9,2018.5,4.95406]
[1742999376516,1.438811,2018.9,2018.6,4.95392]
[1742999376700,1.438811,2018.9,2018.6,4.95388]
[1742999376869,1.438811,2018.9,2018.4,4.9544]
[1742999377269,1.438811,2018.9,2018.5,4.95405]
[1742999377678,1.438811,2018.9,2018.6,4.95372]
[1742999377992,1.438811,2018.9,2018.5,4.954]
[1742999378198,1.438811,2018.9,2018.6,4.95391]
[1742999378692,1.438811,2018.9,2018.5,4.60436593]
[1742999379402,0.79201,2018.9,2018.5,4.65390186]
[1742999379770,0.79201,2018.9,2018.3,4.97702239]
[1742999380000,0.79201,2018.9,2018.0,4.60436593]
[1742999380312,0.8147,2018.8,2017.8,4.60436593]
[1742999380612,0.381471,2018.7,2018.0,4.60436593]
[1742999380904,0.8147,2018.6,2018.0,4.60436593]
[1742999381310,5.675,2018.5,2018.0,4.60436593]
[1742999381525,5.675,2018.5,2017.8,6.89002774]
[1742999381688,5.675,2018.5,2017.8,4.97959115]
[1742999382015,0.8003,2018.4,2017.8,4.60436593]
[1742999382196,0.8003,2018.4,2017.7,4.60436593]
[1742999382378,0.8003,2018.4,2017.7,9.56047593]
[1742999382580,0.8003,2018.4,2017.7,9.56037593]
[1742999382791,0.64753,2018.3,2017.8,0.04955342]
[1742999382991,0.64753,2018.3,2017.8,5.00544342]
[1742999383288,0.8003,2018.4,2018.2,4.95475]
[1742999383592,5.675,2018.5,2018.2,4.95484]
[1742999383811,0.7542,2018.7,2018.3,4.60436593]
[1742999384036,0.7542,2018.7,2018.3,9.55894593]
[1742999384223,0.7542,2018.7,2018.4,4.9544]
[1742999384395,0.7542,2018.7,2018.1,9.55934593]
[1742999384595,1.397121,2018.7,2018.1,4.60436593]
[1742999385122,1.397121,2018.7,2018.1,9.55943593]
[1742999385528,1.397121,2018.7,2018.2,4.9549]
[1742999385903,1.397121,2018.7,2018.2,9.9097]
[1742999386118,1.397121,2018.7,2018.3,4.95465]
[1742999386119,0.7542,2018.7,2018.3,4.95465]
[1742999386435,0.7542,2018.7,2018.5,4.95409]
[1742999386602,5.675,2018.8,2018.5,4.95409]
[1742999386603,5.675,2018.8,2018.6,4.95391]
[1742999386800,5.675,2018.8,2018.4,4.95438]
[1742999387000,5.675,2018.8,2018.4,4.95427]
[1742999387208,5.675,2018.8,2018.5,4.95407]
[1742999387516,5.675,2018.8,2018.6,4.95389]
[1742999387719,0.82901,2018.9,2018.8,4.95343]
[1742999387939,1e-05,2018.9,2018.8,4.95343]
[1742999391320,1e-05,2018.9,2018.8,5.00295973]
[1742999391552,1e-05,2018.9,2018.8,5.74473]
[1742999391702,1e-05,2018.9,2018.8,8.74473]
[1742999391904,1e-05,2018.9,2018.8,11.2057999]
[1742999392320,1e-05,2018.9,2018.8,8.2057999]
[1742999392704,1e-05,2018.9,2018.8,12.81016583]
[1742999393833,1e-05,2018.9,2018.8,13.36016583]
[1742999394040,1e-05,2018.9,2018.8,16.36016583]
[1742999398127,0.55,2019.8,2019.7,4.95123]
[1742999398955,0.55,2019.8,2019.6,4.95139]
[1742999399135,0.55,2019.8,2019.6,4.95141]
[1742999399465,0.55,2019.8,2019.7,4.95123]
[1742999400279,0.55,2019.8,2019.7,11.50146752]
[1742999400490,0.55,2019.8,2019.7,6.89710159]
[1742999400690,0.55,2019.8,2019.7,4.66968737]
[1742999401042,0.7726,2019.7,2019.4,4.95184]
[1742999401248,0.7726,2019.7,2019.3,4.95211]
[1742999401575,0.7726,2019.7,2018.8,4.95343]
[1742999401894,0.7726,2019.7,2019.0,4.60436593]
[1742999402191,0.7726,2019.7,2019.0,0.99363891]
[1742999402347,0.7726,2019.7,2019.3,4.95202]
[1742999402548,0.7726,2019.7,2019.5,4.95153]
[1742999402776,0.7726,2019.7,2019.5,4.95152]
[1742999402979,0.7726,2019.7,2019.6,4.95147]
[1742999403201,0.55,2019.8,2019.7,4.95123]
[1742999403359,0.55,2019.8,2019.7,9.55559593]
[1742999403699,0.55,2019.8,2019.7,11.50147052]
[1742999403986,0.55,2019.8,2019.7,9.55559593]
[1742999404378,0.1191872,2019.9,2019.7,9.55559593]
[1742999404379,0.8004,2020.8,2020.0,0.55]
[1742999404561,0.8004,2020.8,2020.6,4.94887]
[1742999404748,0.8004,2020.8,2020.6,4.9489]
[1742999405255,0.02,2020.9,2020.7,4.94878]
[1742999405594,0.00815877,2020.9,2020.7,4.94869]
[1742999405878,0.00815877,2020.9,2020.7,4.94868]
[1742999406044,0.00815877,2020.9,2020.8,4.94853]
[1742999406450,0.00815877,2020.9,2020.8,5.49853]
[1742999406676,0.00815877,2020.9,2020.8,7.02571859]
[1742999406976,0.00815877,2020.9,2020.5,5.36646593]
[1742999407171,0.00815877,2020.9,2020.7,4.94863]
[1742999407372,0.00815877,2020.9,2020.8,4.94853]
[1742999407571,0.00815877,2020.9,2020.8,5.49853]
[1742999408482,0.00815877,2020.9,2020.8,9.32143]
[1742999408662,8.77e-06,2020.9,2020.8,12.27058559]
[1742999408848,8.77e-06,2020.9,2020.8,8.72058559]
[1742999409045,8.77e-06,2020.9,2020.8,9.32143]
[1742999409277,8.77e-06,2020.9,2020.6,9.55337593]
[1742999409479,8.77e-06,2020.9,2020.8,4.94853]
[1742999409689,8.77e-06,2020.9,2020.8,10.10289593]
[1742999409981,8.77e-06,2020.9,2020.8,13.89029593]
[1742999410281,8.77e-06,2020.9,2020.8,16.83577852]
[1742999410782,0.8103,2021.8,2021.6,4.94644]
[1742999410960,0.1191872,2022.0,2021.8,4.94592]
[1742999411161,0.1191872,2022.0,2021.9,4.94584]
[1742999411457,0.1191872,2022.0,2021.7,4.94631]
[1742999411650,6.4758,2021.9,2021.1,0.8193]
[1742999411850,0.8108,2021.7,2021.1,4.9477]
[1742999412179,0.8108,2021.7,2021.1,9.55215593]
[1742999412351,1.81269982,2021.7,2021.1,4.60436593]
[1742999412552,1.81269982,2021.7,2021.0,4.94802]
[1742999412753,1.81269982,2021.7,2021.3,4.94711]
[1742999412949,1.81269982,2021.7,2021.4,0.55]
[1742999413283,1.00189982,2021.7,2021.6,10.10093593]
[1742999413459,0.1191872,2022.0,2021.9,5.49584]
[1742999413782,0.1191872,2022.0,2021.4,0.8207]
[1742999413948,0.7741,2021.9,2021.1,5.42506593]
[1742999414148,5.665,2021.8,2021.1,9.55207593]
[1742999414372,0.7741,2021.6,2020.8,4.94834]
[1742999414575,0.7741,2021.6,2021.0,4.9479]
[1742999414781,0.7741,2021.6,2021.1,4.94771]
[1742999415082,0.7741,2021.6,2020.8,4.94843]
[1742999415083,5.664,2021.5,2020.8,0.37128748]
[1742999415281,5.664,2021.5,2021.0,4.60436593]
[1742999415489,0.64381,2021.4,2021.2,4.94747]
[1742999415691,0.7823,2021.8,2021.4,5.49704]
[1742999415994,0.1191872,2022.0,2021.6,4.60436593]
[1742999415995,0.9014872,2022.0,2021.6,4.60436593]
[1742999416192,0.1191872,2022.0,2021.9,4.94584]
[1742999416563,0.1191872,2022.0,2021.5,0.55]
[1742999416791,0.1191872,2022.0,2021.9,4.94584]
[1742999417102,0.1191872,2022.0,2021.9,10.10020593]
[1742999417459,0.1191872,2022.0,2021.7,4.94616]
[1742999417791,0.1191872,2022.0,2021.8,4.946]
[1742999417994,0.1191872,2022.0,2021.4,0.7982]
[1742999418291,3.7613,2021.9,2021.2,4.60436593]
[1742999418590,0.95434872,2021.8,2021.3,4.94727]
[1742999418759,0.95434872,2021.8,2021.3,4.94715]
[1742999418958,0.7613,2021.9,2021.3,4.94714]
[1742999419191,3.7613,2021.9,2021.0,4.60436593]
[1742999419457,0.7722,2021.8,2021.0,9.55238593]
[1742999419693,0.7722,2021.8,2020.9,4.94817]
[1742999419874,0.7722,2021.8,2020.9,4.94821]
[1742999420057,4.60436593,2021.4,2020.4,4.60436593]
[1742999420269,0.37722,2021.7,2020.2,4.9498]
[1742999420270,3.7722,2021.1,2020.2,4.9498]
[1742999420481,3.7722,2021.1,2020.5,4.94917]
[1742999420670,3.7722,2021.1,2020.3,4.94969]
[1742999420869,0.37722,2021.0,2020.0,9.55466593]
[1742999421185,0.7722,2020.9,2020.2,4.94999]
[1742999421371,3.0,2020.7,2020.1,4.95023]
[1742999421569,3.0,2020.7,2020.1,4.95009]
[1742999421961,0.7661,2021.0,2020.2,4.60436593]
[1742999422165,0.7661,2021.0,2020.3,0.46043659]
[1742999422396,0.7661,2021.0,2020.4,0.55]
[1742999422563,6.4281,2021.0,2020.3,5.41006659]
[1742999422764,6.4281,2021.0,2020.2,7.94998]
[1742999422963,6.4281,2021.0,2020.2,7.94984]
[1742999423269,6.4281,2021.0,2020.5,4.94926]
[1742999423475,6.4281,2021.0,2020.5,4.94914]
[1742999423679,6.4281,2021.0,2020.4,4.94936]
[1742999423879,6.4281,2021.0,2020.4,5.744296]
[1742999424080,6.4281,2021.0,2020.3,4.94972]
[1742999424278,6.4281,2021.0,2020.3,4.94964]
[1742999424479,0.7773,2020.8,2019.9,4.95055]
[1742999424677,7.60436593,2020.9,2019.8,4.60436593]
[1742999424678,3.0,2020.6,2019.8,4.95076]
[1742999424881,3.0,2020.4,2019.7,4.95119]
[1742999425084,3.0,2020.4,2019.6,1.03196659]
[1742999425286,3.0,2020.4,2019.7,4.95113]
[1742999425498,3.0,2020.4,2019.7,4.95109]
[1742999425670,3.0,2020.4,2019.6,4.95136]
[1742999425998,3.0,2020.4,2019.4,4.95176]
[1742999425999,3.8018,2020.2,2019.4,4.95176]
[1742999426217,3.8018,2020.2,2019.5,4.95159]
[1742999426379,0.8018,2020.2,2019.5,4.95159]
[1742999426702,0.8018,2020.2,2019.5,9.90322]
[1742999427194,0.8018,2020.2,2019.5,4.95156]
[1742999427399,1.33080833,2020.2,2019.6,0.04950884]
[1742999427617,4.60436593,2020.1,2019.2,4.95245]
[1742999427770,29.3944,2020.0,2019.2,4.60436593]
[1742999428100,5.663,2020.3,2020.0,4.95037]
[1742999428304,5.663,2020.3,2020.1,0.04949739]
[1742999428504,5.663,2020.3,2019.7,4.60436593]
[1742999428671,5.663,2020.3,2019.5,0.55]
[1742999428867,3.64934,2020.2,2019.6,0.04950254]
[1742999429381,0.8152,2020.1,2019.4,4.60436593]
[1742999429788,0.8152,2020.1,2019.3,0.46043659]
[1742999430083,0.8152,2020.1,2019.2,7.60436593]
[1742999430292,0.8152,2020.1,2019.0,4.60436593]
[1742999430293,4.60436593,2020.0,2019.0,4.60436593]
[1742999430503,0.8021,2019.9,2018.9,0.75]
[1742999430701,4.60436593,2019.4,2018.4,14.5]
[1742999431009,0.8021,2019.2,2018.3,10.38781593]
[1742999431208,0.8021,2019.2,2018.4,1.03876159]
[1742999431880,3.7855,2019.1,2018.3,14.5]
[1742999432080,0.7855,2019.1,2018.3,19.10436593]
[1742999432310,0.7855,2019.1,2018.1,4.62436593]
[1742999432683,7.60436593,2019.2,2018.1,4.62436593]
[1742999432684,3.0,2018.9,2018.1,0.02]
[1742999432910,0.7909,2018.7,2018.1,0.02]
[1742999433111,0.7909,2018.7,2018.1,4.62436593]
[1742999433317,0.7909,2018.7,2018.2,1.25796459]
[1742999433790,3.7909,2018.7,2018.1,0.02]
[1742999433988,8.39526593,2018.7,2018.1,0.02]
[1742999434319,0.7782,2018.6,2018.1,0.02]
[1742999435018,0.7782,2018.4,2018.1,0.02]
[1742999435219,3.0,2018.2,2018.1,0.02]
[1742999436820,3.832,2018.2,2018.1,0.02]
[1742999437039,0.832,2018.2,2018.1,0.02]
[1742999438222,6.498,2018.2,2018.1,0.02]
[1742999439145,0.832,2018.2,2018.1,0.02]
[1742999439428,6.5,2018.2,2018.1,0.02]
[1742999439628,11.8536901,2018.2,2018.1,0.02]
[1742999439999,14.8536901,2018.2,2018.1,0.02]
[1742999440206,18.4036901,2018.2,2018.1,0.02]
[1742999445956,18.4046901,2018.2,2018.1,0.02]
[1742999446151,12.1856901,2018.2,2018.1,0.02]
[1742999446359,13.25032417,2018.2,2018.1,0.02]
[1742999446863,13.80032417,2018.2,2018.1,0.02]
[1742999447237,7.58132417,2018.2,2018.1,0.02]
[1742999447437,13.25032417,2018.2,2018.1,0.02]
[1742999453166,6.501,2018.2,2018.1,0.02]
[1742999453367,0.99324166,2018.3,2018.1,0.02]
[1742999453574,5.669,2018.2,2018.1,0.02]
[1742999453948,35.26924166,2018.3,2018.1,0.02]
[1742999454462,38.87827583,2018.3,2018.1,0.02]
[1742999454970,5.40616593,2018.2,2018.1,0.02]
[1742999455375,0.8018,2018.2,2018.1,0.02]
[1742999456061,6.4708,2018.2,2018.1,0.02]
[1742999456371,11.07516593,2018.2,2018.1,0.02]
[1742999456582,12.8073371,2018.2,2018.1,0.02]
[1742999457441,13.3573371,2018.2,2018.1,0.02]
[1742999457645,16.3605371,2018.2,2018.1,0.02]
[1742999458292,15.8105371,2018.2,2018.1,0.02]
[1742999458464,12.8105371,2018.2,2018.1,0.02]
[1742999458643,15.8105371,2018.2,2018.1,0.02]
[1742999458843,11.20617117,2018.2,2018.1,0.02]
[1742999459063,38.08,2018.2,2018.1,0.02]
[1742999459345,34.275,2018.2,2018.1,0.02]
[1742999459547,37.275,2018.2,2018.1,0.02]
[1742999459944,34.275,2018.2,2018.1,0.02]
[1742999460171,37.275,2018.2,2018.1,0.02]
[1742999461163,6.66124166,2018.3,2018.1,0.02]
[1742999461367,0.99324166,2018.3,2018.2,4.95491]
[1742999461572,2.87507096,2019.7,2018.6,4.95372]
[1742999461573,5.668,2019.1,2018.6,4.95372]
[1742999461772,0.8218,2019.3,2018.8,4.95328]
[1742999461976,0.8218,2019.3,2019.0,4.9529]
[1742999461977,5.668,2019.3,2019.0,4.9529]
[1742999462265,1.01522842,2019.2,2019.1,5.00213594]
[1742999462497,1.01522842,2019.2,2018.9,0.7766]
[1742999462644,0.66832284,2019.1,2018.6,0.7739]
[1742999462851,1.01522842,2019.2,2018.8,4.9533]
[1742999463353,1.01522842,2019.2,2019.0,5.74894]
[1742999463679,1.01522842,2019.2,2018.7,0.8187]
[1742999463895,1.01522842,2019.2,2018.4,7.60436593]
[1742999463896,4.01522842,2019.2,2018.4,4.9544]
[1742999464046,3.0,2019.0,2018.3,0.8187]
[1742999464251,3.0,2019.0,2018.1,0.02]
[1742999464252,3.0,2018.8,2018.1,0.02]
[1742999464550,4.60436593,2018.3,2018.1,0.02]
[1742999464773,8.667,2018.2,2018.1,0.02]
[1742999464973,9.4183,2018.2,2018.1,0.02]
[1742999465351,10.39611041,2018.2,2018.1,0.02]
[1742999465551,15.05655804,2018.2,2018.1,0.02]
[1742999466079,0.97781041,2018.2,2018.1,0.02]
[1742999466380,3.0,2018.5,2018.1,0.02]
[1742999466882,3.99528018,2018.5,2018.1,0.02]
[1742999467685,0.821,2018.4,2018.1,0.02]
[1742999467890,3.0,2018.2,2018.1,0.02]
[1742999468047,3.6821,2018.2,2018.1,0.02]
[1742999469392,4.0592012,2018.2,2018.1,0.02]
[1742999469751,4.6092012,2018.2,2018.1,0.02]
[1742999469948,5.4023012,2018.2,2018.1,0.02]
[1742999472859,4.8523012,2018.2,2018.1,0.02]
[1742999473178,9.8372012,2018.2,2018.1,0.02]
[1742999473771,10.3872012,2018.2,2018.1,0.02]
[1742999474513,9.8372012,2018.2,2018.1,0.02]
[1742999474865,9.4601,2018.2,2018.1,0.02]
[1742999475297,38.6181,2018.2,2018.1,0.02]
[1742999475541,64.47702098,2018.2,2018.1,0.02]
[1742999475668,60.99061298,2018.2,2018.1,0.02]
[1742999475876,62.32387771,2018.2,2018.1,0.02]
[1742999476072,67.27878771,2018.2,2018.1,0.02]
[1742999476273,3.8072,2017.3,2016.4,0.7734]
[1742999476502,3.0,2017.1,2016.4,0.7734]
[1742999476875,34.65572,2017.2,2016.6,4.95882]
[1742999477081,34.65572,2017.2,2016.5,4.95897]
[1742999477374,34.65572,2017.2,2016.6,4.95883]
[1742999477574,34.65572,2017.2,2016.4,5.73252]
[1742999477774,0.83453772,2017.1,2016.4,6.305772]
[1742999477974,1.00647059,2016.9,2016.5,5.00864406]
[1742999478781,34.275,2017.2,2016.8,4.95834]
[1742999479007,5.667,2017.4,2017.1,4.95748]
[1742999479302,37.28,2017.7,2017.0,0.7862]
[1742999479504,3.0,2017.6,2017.0,0.7862]
[1742999479908,0.97555884,2017.3,2017.0,0.7862]